bitfinex-derivatives/quotes_ETHF0:USTF0_20250214
["timestamp","ask_amount","ask_price","bid_price","bid_amount"]
[1739564104755,0.72811,2745.6,2745.5,1.28421]
[1739564105066,0.5713994,2745.8,2745.7,0.72809]
[1739564105067,1.2994794,2745.8,2745.7,0.72809]
[1739564105263,0.72811,2745.7,2745.6,0.72809]
[1739564106158,0.5713994,2745.8,2745.5,0.5561]
[1739564106364,1.2994994,2745.8,2745.7,0.72809]
[1739564106959,0.0026994,2745.8,2745.7,3.55848306]
[1739564107260,3.7977,2746.7,2745.7,6.0]
[1739564107462,0.72785,2746.6,2746.5,0.72786]
[1739564107664,41.52785,2746.6,2746.5,1.28656]
[1739564107858,40.8,2746.6,2746.5,1.28656]
[1739564108064,41.52785,2746.6,2746.5,1.28656]
[1739564108460,41.52785,2746.6,2746.5,0.5587]
[1739564108870,40.8,2746.6,2746.5,0.5587]
[1739564109173,15.45494809,2746.8,2746.5,13.68956306]
[1739564109471,10.74807011,2746.9,2746.8,0.72779]
[1739564109769,10.74807011,2746.9,2746.8,6.76598306]
[1739564110070,10.74807011,2746.9,2746.8,4.47539306]
[1739564110259,11.47584011,2746.9,2746.8,4.47539306]
[1739564110465,10.74807011,2746.9,2746.8,4.47539306]
[1739564110671,11.47584011,2746.9,2746.8,4.47539306]
[1739564110871,10.74807011,2746.9,2746.8,2.83039306]
[1739564111265,11.47584011,2746.9,2746.8,2.83039306]
[1739564111565,10.74807011,2746.9,2746.8,6.76598306]
[1739564111770,40.8,2746.9,2746.8,6.03819306]
[1739564111970,0.72768,2747.3,2747.0,0.72774]
[1739564112273,0.72769,2747.2,2747.1,2.83039306]
[1739564112566,44.0078,2747.2,2746.5,3.38909306]
[1739564112768,3.7583,2747.1,2746.5,5.03409306]
[1739564113071,0.72783,2746.7,2746.5,5.03409306]
[1739564113373,0.72785,2746.6,2746.5,5.03409306]
[1739564113568,3.2078,2746.8,2746.2,6.40299306]
[1739564113774,0.72789,2746.5,2746.3,0.72791]
[1739564113970,0.72789,2746.5,2746.2,4.47539306]
[1739564114172,3.2078,2746.8,2746.2,4.47539306]
[1739564114468,3.2078,2746.8,2746.2,5.20334306]
[1739564114771,0.7279,2746.4,2746.2,5.20333306]
[1739564114966,3.2078,2746.5,2746.2,4.47539306]
[1739564115172,0.5904,2747.0,2746.4,3.2078]
[1739564115372,0.72778,2746.9,2746.5,2.83039306]
[1739564115567,0.72778,2746.9,2746.7,0.72781]
[1739564115764,0.5904,2747.0,2746.5,2.83039306]
[1739564115968,1.31815,2747.0,2746.5,2.83039306]
[1739564116285,1.31816,2747.0,2746.8,0.72779]
[1739564116671,44.0078,2747.2,2746.8,4.47539306]
[1739564116871,44.73549,2747.2,2747.1,0.72771]
[1739564117071,44.73549,2747.2,2747.0,0.72773]
[1739564118176,0.72774,2747.1,2746.9,1.30725]
[1739564118473,0.72774,2747.0,2746.9,0.5795]
[1739564119469,0.72777,2746.9,2746.8,1.645]
[1739564119676,0.72786,2746.6,2746.5,2.37186]
[1739564119876,0.72785,2746.7,2746.5,2.37186]
[1739564120077,3.8019,2746.9,2746.2,3.39779306]
[1739564120377,0.7279,2746.4,2746.3,2.37191]
[1739564120566,41.5279,2746.4,2746.3,1.644]
[1739564121568,41.3941,2746.4,2746.2,0.5674]
[1739564121881,0.72795,2746.2,2746.1,3.2078]
[1739564122875,0.72795,2746.2,2745.9,0.00546667]
[1739564122876,0.72801,2746.0,2745.9,0.00546667]
[1739564124068,2.39764,2746.5,2745.9,13.68965973]
[1739564124069,3.2078,2746.5,2745.9,13.68965973]
[1739564124277,0.72786,2746.6,2746.4,3.55829306]
[1739564124491,3.2078,2746.9,2746.4,5.20629306]
[1739564124677,41.3895,2746.8,2746.4,5.20629306]
[1739564124878,41.3895,2746.8,2746.1,2.83039306]
[1739564125179,0.72792,2746.4,2746.2,2.37593]
[1739564125475,0.7279,2746.4,2746.2,1.648]
[1739564125778,0.72793,2746.3,2746.2,1.648]
[1739564126180,43.20905,2746.8,2745.9,1.65246667]
[1739564126181,3.7788,2746.5,2745.9,1.65246667]
[1739564126474,0.571,2746.5,2746.1,2.83039306]
[1739564126880,3.93566,2746.6,2746.1,2.83039306]
[1739564127181,3.93567,2746.6,2746.4,0.7279]
[1739564127476,41.9605,2746.8,2746.4,2.83039306]
[1739564127477,42.68832,2746.8,2746.4,2.83039306]
[1739564127674,41.9605,2746.8,2746.7,0.72782]
[1739564127869,41.9605,2746.8,2746.5,0.72785]
[1739564128083,0.72787,2746.5,2746.4,0.72788]
[1739564128382,0.72786,2746.6,2746.4,0.72788]
[1739564128576,0.72787,2746.5,2746.4,0.72788]
[1739564128882,0.7279,2746.4,2746.3,2.2027]
[1739564129179,0.7279,2746.4,2746.3,2.93063]
[1739564130879,0.7279,2746.4,2746.3,2.2027]
[1739564131180,0.7279,2746.4,2746.3,2.93063]
[1739564131377,3.7948,2746.7,2746.3,2.93063]
[1739564131775,0.7279,2746.4,2746.3,2.93063]
[1739564132383,0.7279,2746.4,2746.3,1.28163]
[1739564132682,0.7279,2746.4,2746.3,2.92663]
[1739564133078,0.72787,2746.6,2746.4,0.7279]
[1739564133278,3.7948,2746.7,2746.3,2.1987]
[1739564133479,0.72789,2746.5,2746.4,0.72789]
[1739564133681,0.7279,2746.4,2746.3,2.1987]
[1739564133875,0.7279,2746.4,2746.3,2.92663]
[1739564134071,3.7948,2746.7,2746.3,2.1987]
[1739564134271,0.72789,2746.5,2746.3,2.1987]
[1739564134474,3.2078,2746.7,2746.6,0.72785]
[1739564135178,44.0078,2747.0,2746.4,4.65015306]
[1739564135485,44.73555,2747.0,2746.9,0.72777]
[1739564136375,44.0078,2747.0,2746.9,0.72777]
[1739564136577,40.8,2747.0,2746.9,5.57957]
[1739564136984,0.72764,2747.4,2746.9,5.57957]
[1739564136985,1.28123,2747.5,2746.9,5.57957]
[1739564137177,0.72764,2747.4,2747.3,0.72764]
[1739564137482,41.52764,2747.4,2747.3,0.72764]
[1739564137982,40.8,2747.4,2747.0,1.1478]
[1739564138882,40.8,2747.4,2747.3,0.72766]
[1739564142081,40.8,2747.4,2747.3,4.13465306]
[1739564142280,0.5594,2748.0,2747.7,0.72753]
[1739564142582,0.5594,2748.0,2747.6,1.644]
[1739564142785,0.72756,2747.7,2747.6,1.644]
[1739564142978,0.72756,2747.7,2747.6,2.37158]
[1739564143384,0.72756,2747.7,2747.6,1.644]
[1739564144086,0.72756,2747.7,2747.6,2.37158]
[1739564144280,41.52756,2747.7,2747.6,2.37158]
[1739564144479,41.52756,2747.7,2747.6,1.644]
[1739564144780,41.52756,2747.7,2747.6,2.37158]
[1739564145079,0.01589,2748.4,2747.6,4.47439306]
[1739564145284,0.01589,2748.4,2748.0,6.03819306]
[1739564145482,0.01589,2748.4,2748.1,1.644]
[1739564145681,0.01589,2748.4,2748.3,6.76559306]
[1739564146184,0.01589,2748.4,2748.3,3.9352]
[1739564146480,0.74326,2748.4,2748.3,1.644]
[1739564146686,0.72742,2748.3,2748.1,0.72744]
[1739564146874,1.30752,2748.3,2748.1,0.72744]
[1739564147280,1.30752,2748.3,2748.0,4.47439306]
[1739564147281,0.5801,2748.3,2748.2,0.72742]
[1739564147990,0.01589,2748.4,2748.3,0.7274]
[1739564148287,0.01589,2748.4,2748.3,3.55779306]
[1739564148488,0.01589,2748.4,2748.3,3.84279625]
[1739564149979,0.01589,2748.4,2748.3,1.01240319]
[1739564150189,0.01589,2748.4,2748.3,3.84279625]
[1739564152984,41.5273,2748.7,2748.6,0.72732]
[1739564153185,41.5273,2748.7,2748.6,2.37132]
[1739564153481,40.8,2748.7,2748.6,2.37132]
[1739564153686,41.52729,2748.7,2748.6,1.644]
[1739564153886,41.52729,2748.7,2748.6,2.37132]
[1739564154392,41.52729,2748.7,2748.6,1.644]
[1739564154790,40.8,2748.7,2748.6,1.644]
[1739564154987,41.52729,2748.7,2748.6,1.644]
[1739564155196,41.52729,2748.7,2748.6,2.37132]
[1739564155383,41.52729,2748.7,2748.6,1.644]
[1739564155585,41.52729,2748.7,2748.6,2.37132]
[1739564155889,41.52729,2748.7,2746.4,1.35723087]
[1739564155890,50.0078,2748.7,2747.7,2.83039306]
[1739564156088,1.81843,2748.4,2747.7,2.83039306]
[1739564156288,0.72751,2747.9,2747.8,0.72752]
[1739564156493,40.8,2747.9,2747.8,0.72752]
[1739564156794,3.2078,2749.0,2748.9,0.72724]
[1739564157593,44.0078,2749.0,2748.9,0.72724]
[1739564158486,0.72716,2749.3,2748.8,2.83039306]
[1739564158685,0.72715,2749.3,2749.1,0.72717]
[1739564158885,40.8,2749.2,2749.1,0.72717]
[1739564159588,41.52717,2749.2,2749.1,0.72719]
[1739564159890,40.8,2749.2,2749.1,0.72719]
[1739564160494,40.8,2749.2,2749.1,2.39019]
[1739564161385,41.52716,2749.2,2749.1,1.663]
[1739564162092,40.8,2749.2,2749.1,1.663]
[1739564162288,40.8,2749.2,2749.1,2.39019]
[1739564162484,40.8,2749.2,2749.1,1.663]
[1739564162686,41.52716,2749.2,2749.1,1.663]
[1739564163290,40.8,2749.2,2749.1,2.39019]
[1739564164893,3.2078,2749.7,2749.1,5.1826235]
[1739564165196,3.2078,2749.7,2749.5,0.72707]
[1739564165490,3.2078,2750.3,2749.6,1.663]
[1739564165697,0.5803,2750.1,2749.7,0.72703]
[1739564165902,1.30724,2750.1,2749.7,1.30213]
[1739564166098,0.5803,2750.1,2749.7,1.84813]
[1739564166391,40.81753,2749.8,2749.7,8.5755535]
[1739564166593,0.01753,2749.8,2749.7,8.5755535]
[1739564166796,3.7881,2750.6,2749.7,13.8485235]
[1739564166988,41.52683,2750.5,2750.2,0.72687]
[1739564167299,40.8,2750.5,2750.3,2.39686]
[1739564167603,40.8,2750.5,2750.3,1.67]
[1739564168103,0.72684,2750.4,2750.3,1.67]
[1739564168291,41.52684,2750.5,2750.3,1.67]
[1739564168498,0.72684,2750.4,2750.3,1.67]
[1739564168690,40.8,2750.5,2750.3,1.67]
[1739564168996,40.8,2750.5,2750.1,0.72691]
[1739564169198,40.8,2750.5,2750.4,0.72684]
[1739564169595,3.2078,2751.0,2750.3,6.7274235]
[1739564169790,3.2078,2751.0,2750.4,0.5526]
[1739564169991,3.2078,2751.3,2750.6,6.7274235]
[1739564170191,3.2078,2751.7,2750.9,6.7274235]
[1739564170387,3.2078,2751.7,2751.3,0.72659]
[1739564170594,0.72657,2751.5,2751.4,1.688]
[1739564170794,3.2078,2751.7,2750.9,4.8978]
[1739564171095,1.14,2751.8,2750.5,3.7604]
[1739564171096,3.2078,2751.3,2750.5,3.7604]
[1739564171396,3.2078,2751.0,2750.6,1.69]
[1739564171598,0.72682,2750.5,2750.4,1.69645653]
[1739564172102,0.72682,2750.5,2750.4,0.00545653]
[1739564172398,0.5737,2750.6,2750.1,1.691]
[1739564172698,3.2078,2750.3,2750.1,1.691]
[1739564172899,0.00538879,2750.7,2750.1,1.691]
[1739564172900,0.00538879,2750.7,2750.1,4.8988]
[1739564173190,0.00538879,2750.7,2750.4,3.93463]
[1739564173396,0.73216879,2750.7,2750.4,3.2078]
[1739564173586,0.72682,2750.5,2750.4,3.2078]
[1739564173790,0.72684,2750.4,2750.3,0.00545653]
[1739564174395,3.93464,2750.4,2750.3,0.00545653]
[1739564175289,3.93464,2750.4,2749.7,1.711]
[1739564175290,3.2078,2750.4,2749.7,1.711]
[1739564175491,0.72702,2749.8,2749.5,2.43806]
[1739564175694,3.2078,2750.0,2749.5,2.43806]
[1739564175895,0.72703,2749.7,2749.5,2.43806]
[1739564176196,0.72701,2749.8,2749.6,0.72704]
[1739564176400,40.8,2749.7,2749.6,0.72704]
[1739564176991,41.52704,2749.7,2749.5,2.43607]
[1739564177196,40.8,2749.7,2749.4,0.00545653]
[1739564177397,41.52704,2749.7,2749.5,0.72708]
[1739564177793,0.72706,2749.6,2749.4,0.73255653]
[1739564178196,40.8,2749.7,2749.4,0.00545653]
[1739564178393,0.72705,2749.6,2749.4,0.73255653]
[1739564178793,40.8,2749.7,2749.4,0.00545653]
[1739564178991,0.72707,2749.6,2749.4,0.00545653]
[1739564179192,44.73485,2749.7,2749.4,0.73254653]
[1739564179394,44.73485,2749.7,2749.4,0.00545653]
[1739564179395,0.72705,2749.6,2749.4,0.00545653]
[1739564179598,0.72708,2749.5,2749.4,0.00545653]
[1739564182102,0.72724,2748.9,2748.8,1.703]
[1739564182993,0.72722,2749.0,2748.9,0.72723]
[1739564183194,3.2078,2749.2,2748.8,2.43026]
[1739564183402,0.72724,2748.9,2748.8,1.703]
[1739564184097,0.00545653,2749.1,2748.6,4.74296538]
[1739564184295,3.2078,2748.9,2748.6,1.22334188]
[1739564184604,0.72729,2748.7,2748.6,1.22334188]
[1739564184799,0.72729,2748.7,2748.6,1.58666188]
[1739564185306,3.2078,2748.9,2748.6,0.56755653]
[1739564185806,0.72727,2748.8,2748.7,0.72728]
[1739564186501,3.2078,2748.9,2748.6,0.56755653]
[1739564186804,0.72729,2748.7,2748.6,0.56755653]
[1739564187204,0.72729,2748.7,2748.6,1.29487653]
[1739564187704,0.72728,2748.8,2748.7,0.72727]
[1739564187899,0.00545653,2749.1,2748.7,3.2078]
[1739564188102,0.00545653,2749.1,2749.0,3.53675603]
[1739564188399,0.00545653,2749.1,2749.0,5.23275603]
[1739564188595,0.73264653,2749.1,2749.0,4.50554603]
[1739564188796,0.72727,2748.8,2748.7,2.80954603]
[1739564189108,5.0259,2749.0,2748.7,1.696]
[1739564189298,0.72727,2748.8,2748.7,1.696]
[1739564189496,0.72729,2748.7,2748.6,0.00545653]
[1739564190100,3.93509,2748.7,2748.6,0.00545653]
[1739564190806,0.72729,2748.7,2748.6,0.00545653]
[1739564191010,3.93509,2748.7,2748.6,0.00545653]
[1739564191508,44.73509,2748.7,2748.6,0.00545653]
[1739564193810,0.72745,2748.1,2748.0,2.52767674]
[1739564194007,0.72745,2748.1,2748.0,3.25515674]
[1739564194310,3.2078,2748.4,2748.1,0.72744]
[1739564194311,0.72744,2748.2,2748.1,0.72744]
[1739564195107,0.72739,2748.4,2748.3,0.72738]
[1739564195315,0.72741,2748.3,2748.2,0.72741]
[1739564196209,40.8,2748.7,2748.1,2.80954603]
[1739564196412,3.2078,2748.6,2748.1,2.80954603]
[1739564196611,0.72741,2748.3,2748.2,0.72742]
[1739564196811,0.72742,2748.2,2748.1,3.53698603]
[1739564197009,3.2078,2748.6,2748.1,2.80954603]
[1739564197214,0.72741,2748.3,2748.2,0.72742]
[1739564197514,0.7274,2748.3,2748.2,0.72742]
[1739564198016,0.72742,2748.2,2748.1,2.80954603]
[1739564199213,0.72742,2748.2,2748.1,3.53699603]
[1739564202515,1.81837,2748.5,2748.0,5.73547674]
[1739564202820,0.72745,2748.1,2748.0,3.25514674]
[1739564204013,0.72745,2748.1,2748.0,0.83567674]
[1739564204208,0.72745,2748.1,2748.0,0.5451]
[1739564204412,5.58722,2748.3,2747.9,1.68345653]
[1739564204607,0.72748,2748.0,2747.9,1.68345653]
[1739564205007,0.72748,2748.0,2747.9,2.41095653]
[1739564205217,0.72748,2748.0,2747.9,1.68345653]
[1739564205917,0.72748,2748.0,2747.9,2.41095653]
[1739564206115,0.72748,2748.0,2747.9,0.00545653]
[1739564206816,3.93528,2748.0,2747.9,0.00545653]
[1739564207315,0.72761,2747.5,2747.4,3.93542]
[1739564207518,0.72761,2747.5,2747.4,4.2242897]
[1739564207718,0.72761,2747.5,2747.4,3.4966697]
[1739564208017,41.52761,2747.5,2747.4,0.2888697]
[1739564208218,0.72766,2747.4,2747.3,0.72764]
[1739564208919,40.8,2747.5,2747.2,4.49100256]
[1739564209124,40.8,2747.5,2747.2,3.10118836]
[1739564209418,40.8,2747.5,2747.4,0.72764]
[1739564209616,41.52761,2747.5,2747.4,0.72764]
[1739564211222,0.72766,2747.3,2747.2,5.21768256]
[1739564211415,3.2078,2747.4,2747.2,0.00545653]
[1739564211612,40.8,2747.5,2747.2,0.00545653]
[1739564211822,0.72766,2747.3,2747.2,0.00545653]
[1739564214017,1.29126,2747.3,2747.2,0.00545653]
[1739564215419,1.29126,2747.3,2746.5,0.28887571]
[1739564215420,6.5636,2747.3,2746.5,0.28887571]
[1739564215724,0.72785,2746.6,2746.5,2.40485]
[1739564216117,1.1429,2746.8,2746.5,1.677]
[1739564216420,1.1429,2746.8,2746.5,2.40485]
[1739564216421,0.72785,2746.6,2746.5,2.40485]
[1739564216721,1.1429,2746.8,2746.5,1.677]
[1739564217114,0.72785,2746.6,2746.5,2.40486]
[1739564217321,1.1429,2746.8,2746.5,1.677]
[1739564217618,0.72784,2746.7,2746.6,0.72782]
[1739564218020,1.1429,2746.8,2746.7,0.72782]
[1739564218021,1.87072,2746.8,2746.7,0.72782]
[1739564218320,0.72783,2746.7,2746.6,0.72783]
[1739564218519,0.72785,2746.6,2746.5,1.677]
[1739564218717,3.2078,2746.9,2746.5,1.677]
[1739564218916,0.72785,2746.6,2746.5,2.40486]
[1739564219822,0.72784,2746.7,2746.6,0.72783]
[1739564220123,0.72781,2746.8,2746.7,0.7278]
[1739564220421,0.72785,2746.7,2746.6,0.72783]
[1739564220825,3.2078,2746.9,2746.5,1.677]
[1739564221016,0.72785,2746.6,2746.5,2.40487]
[1739564221617,3.2078,2746.9,2746.5,2.40487]
[1739564221821,0.72786,2746.6,2746.5,2.40487]
[1739564222019,0.72786,2746.6,2746.5,2.40489]
[1739564222220,0.72789,2746.5,2746.4,0.00370542]
[1739564222424,1.86239,2746.5,2746.4,0.73161542]
[1739564222623,1.30719,2746.5,2746.4,0.73161542]
[1739564222819,1.30719,2746.5,2746.4,0.00370542]
[1739564223319,42.10719,2746.5,2746.4,0.00370542]
[1739564223518,42.10719,2746.5,2746.4,0.73161542]
[1739564223714,42.10719,2746.5,2746.4,0.00370542]
[1739564226125,42.10719,2746.5,2746.4,0.73161542]
[1739564226326,40.8,2746.5,2746.4,0.73161542]
[1739564226628,0.72766,2747.4,2747.3,0.72767]
[1739564226816,1.1319,2747.6,2747.1,2.80954603]
[1739564227016,0.00545653,2747.7,2747.6,0.72759]
[1739564227422,40.80545653,2747.7,2747.4,2.80954603]
[1739564227630,40.80545653,2747.7,2747.3,3.2078]
[1739564227821,0.72761,2747.6,2747.4,0.72765]
[1739564228121,0.72759,2747.6,2747.4,0.72765]
[1739564228431,0.72761,2747.6,2747.5,0.72762]
[1739564228624,40.80545653,2747.7,2747.6,0.72759]
[1739564228827,0.55,2748.3,2747.6,4.8888]
[1739564229127,1.27741,2748.3,2748.0,2.80954603]
[1739564229324,40.8,2748.2,2748.0,3.53702603]
[1739564230123,40.8,2748.2,2748.0,2.80954603]
[1739564230124,41.52745,2748.2,2748.0,2.80954603]
[1739564230325,40.8,2748.2,2748.0,2.80954603]
[1739564230521,0.5819,2748.7,2748.0,2.80954603]
[1739564230522,3.2078,2748.9,2748.1,2.042]
[1739564230720,0.72729,2748.8,2748.5,0.72735]
[1739564230922,3.2078,2748.9,2748.4,2.80954603]
[1739564231125,41.52733,2748.7,2748.4,2.80954603]
[1739564231527,40.8,2748.7,2748.3,0.72741]
[1739564231825,0.72733,2748.6,2748.3,0.72741]
[1739564232227,3.2078,2748.6,2748.1,2.042]
[1739564232424,0.72742,2748.3,2748.1,1.678]
[1739564232833,0.7274,2748.4,2748.1,2.40546]
[1739564233023,0.72737,2748.5,2748.2,0.72743]
[1739564233223,3.7857,2748.6,2748.1,1.678]
[1739564233423,4.51305,2748.6,2748.3,0.7274]
[1739564233629,0.72737,2748.5,2748.2,0.72742]
[1739564233936,0.72737,2748.5,2748.1,4.48754603]
[1739564233937,40.8,2748.7,2748.1,4.48754603]
[1739564234125,0.72734,2748.6,2748.3,0.72738]
[1739564235123,40.8,2748.7,2748.3,0.72738]
[1739564235325,0.72735,2748.6,2748.4,0.72737]
[1739564235523,40.8,2748.7,2748.2,3.2078]
[1739564235827,0.72738,2748.5,2748.3,0.72741]
[1739564236023,40.8,2748.7,2748.2,3.2078]
[1739564236024,0.72741,2748.3,2748.2,3.2078]
[1739564236224,0.72741,2748.3,2747.8,0.00545653]
[1739564236225,0.72752,2747.9,2747.8,0.00545653]
[1739564236825,41.52752,2747.9,2747.8,0.00545653]
[1739564237035,2.916,2748.7,2747.8,0.00545653]
[1739564237036,3.21325653,2748.8,2748.7,0.7273]
[1739564237226,4.8878,2749.5,2748.7,3.9351]
[1739564237428,5.0468,2749.5,2749.2,0.72716]
[1739564237629,0.72712,2749.4,2749.2,0.72716]
[1739564237830,0.72712,2749.4,2749.1,0.72718]
[1739564238031,40.8,2749.3,2749.1,0.72718]
[1739564238226,41.52715,2749.3,2749.0,2.80954603]
[1739564238437,0.72722,2749.1,2748.9,1.708]
[1739564238736,0.72719,2749.2,2749.0,0.72721]
[1739564239436,40.8,2749.3,2748.9,1.708]
[1739564239635,0.72722,2749.0,2748.9,1.708]
[1739564240530,3.2078,2749.1,2748.7,2.80954603]
[1739564240741,3.2078,2749.1,2748.6,1.711]
[1739564241231,41.52723,2749.0,2748.8,0.72725]
[1739564241432,40.8,2749.0,2748.9,3.7562]
[1739564241628,40.8,2749.0,2748.9,0.5484]
[1739564241847,0.72728,2748.8,2748.5,2.44635]
[1739564242236,0.72735,2748.6,2748.4,0.5886]
[1739564242430,0.72728,2748.8,2748.5,0.72735]
[1739564242628,1.0926,2748.9,2748.4,4.52854603]
[1739564242828,1.0926,2748.9,2748.7,0.72728]
[1739564243234,1.0926,2748.9,2748.4,4.52854603]
[1739564243534,40.8,2749.0,2748.7,2.80954603]
[1739564243734,40.8,2749.0,2748.9,0.72725]
[1739564244433,40.8,2749.0,2748.9,2.44625]
[1739564245239,0.7271,2749.5,2749.2,0.72715]
[1739564245436,0.72714,2749.4,2749.1,3.53673603]
[1739564245736,40.8,2749.3,2749.1,3.53673603]
[1739564246129,0.72719,2749.2,2748.9,4.9268]
[1739564246438,42.09476,2749.3,2749.0,0.72721]
[1739564246637,0.7272,2749.1,2748.9,1.719]
[1739564246937,0.72722,2749.0,2748.9,1.719]
[1739564247732,0.5631,2749.2,2748.9,1.719]
[1739564247927,0.72722,2749.1,2748.9,1.719]
[1739564248133,0.72722,2749.0,2748.9,1.719]
[1739564248433,44.5754,2749.3,2749.2,0.72717]
[1739564248633,44.5754,2749.3,2748.9,4.9268]
[1739564248634,45.30254,2749.3,2749.1,0.72718]
[1739564248838,44.5754,2749.3,2749.2,0.72717]
[1739564249433,41.3676,2749.3,2749.2,0.72717]
[1739564249635,41.3676,2749.3,2748.9,4.9268]
[1739564249839,42.09476,2749.3,2749.2,0.72717]
[1739564250235,41.3676,2749.3,2748.9,4.9268]
[1739564250432,41.3676,2749.3,2749.1,0.72718]
[1739564250741,44.5754,2749.3,2748.8,5.06794603]
[1739564250936,44.5754,2749.3,2748.8,2.2584]
[1739564251243,0.72726,2748.9,2748.7,1.711]
[1739564251445,0.5377,2749.2,2748.7,1.711]
[1739564251744,0.72726,2748.9,2748.8,0.72726]
[1739564251943,0.72726,2748.9,2748.8,0.72728]
[1739564251944,0.72725,2748.9,2748.8,0.72728]
[1739564253038,0.72726,2748.9,2748.8,0.72726]
[1739564253239,3.2078,2749.0,2748.6,2.2542]
[1739564253440,0.72726,2748.9,2748.8,0.72727]
[1739564254050,3.2078,2749.0,2748.6,2.2542]
[1739564254239,0.7273,2748.7,2748.6,2.98151]
[1739564254546,0.5376,2748.8,2748.7,0.7273]
[1739564258547,1.26488,2748.8,2748.7,0.7273]
[1739564259749,0.5376,2748.8,2748.7,0.7273]
[1739564260149,1.26488,2748.8,2748.7,0.7273]
[1739564260546,0.72733,2748.6,2748.5,3.2078]
[1739564260851,0.5376,2748.8,2748.6,0.72731]
[1739564260852,0.72733,2748.7,2748.6,0.72731]
[1739564261550,41.52733,2748.7,2748.6,0.72731]
[1739564261847,0.72738,2748.4,2748.3,1.29088]
[1739564262147,3.7619,2748.7,2748.3,0.5635]
[1739564262339,0.72737,2748.5,2748.4,0.72736]
[1739564262541,41.52737,2748.5,2748.4,0.72736]
[1739564263948,0.72738,2748.4,2748.3,1.2909]
[1739564266252,41.52738,2748.5,2748.4,0.72738]
[1739564267156,0.72738,2748.4,2748.3,1.2909]
[1739564268554,40.8,2748.5,2748.3,0.5635]
[1739564268852,41.52738,2748.5,2748.4,0.72738]
[1739564269247,40.8,2748.5,2748.3,0.5635]
[1739564269456,0.72738,2748.4,2748.3,1.29089]
[1739564270253,40.8,2748.5,2748.3,0.5635]
[1739564270449,40.8,2748.5,2748.4,0.72738]
[1739564270644,41.52736,2748.5,2748.4,0.72738]
[1739564271955,0.00545653,2749.6,2748.8,1.81817]
[1739564272253,0.00545653,2749.6,2749.1,3.2078]
[1739564272454,40.80545653,2749.6,2749.1,3.7949]
[1739564272649,40.80545653,2749.6,2749.1,0.5871]
[1739564272850,3.2078,2749.5,2748.9,1.693]
[1739564273054,0.72716,2749.3,2749.1,0.72717]
[1739564273250,3.2078,2749.5,2749.1,0.7272]
[1739564273251,0.5648,2749.2,2749.1,0.7272]
[1739564273848,1.1283,2749.2,2749.1,0.7272]
[1739564274152,1.85547,2749.2,2749.1,0.7272]
[1739564274352,4.3361,2749.2,2748.6,0.5871]
[1739564274951,4.3361,2749.2,2748.8,0.72727]
[1739564275155,0.72722,2749.1,2748.8,0.72727]
[1739564275555,0.72722,2749.1,2748.9,0.72723]
[1739564276055,4.3361,2749.2,2748.6,0.5871]
[1739564276359,1.85548,2749.2,2749.1,0.7272]
[1739564277552,1.85548,2749.2,2749.0,0.72721]
[1739564277948,1.1283,2749.2,2749.1,0.7272]
[1739564278145,0.5635,2749.2,2749.1,0.7272]
[1739564279260,0.5401,2749.5,2749.4,0.72712]
[1739564282561,1.26719,2749.5,2749.4,0.72712]
[1739564282762,0.72714,2749.3,2749.2,0.00545653]
[1739564283255,9.93494,2749.3,2749.2,0.00545653]
[1739564283459,9.93494,2749.3,2748.6,0.72733]
[1739564283460,1.81797,2749.2,2748.6,0.72733]
[1739564283661,2.80954603,2749.1,2748.3,1.81853]
[1739564283858,0.72727,2748.9,2748.2,8.46578]
[1739564284055,41.5273,2748.8,2748.6,0.72731]
[1739564284261,0.5828,2748.7,2748.2,6.6472]
[1739564284459,1.31013,2748.7,2748.6,0.72733]
[1739564284663,0.5828,2748.7,2748.2,6.65265653]
[1739564285165,0.72734,2748.6,2748.5,0.72736]
[1739564285957,0.5828,2748.7,2748.2,6.65265653]
[1739564286159,1.31012,2748.7,2748.6,0.72733]
[1739564286355,1.31012,2748.7,2748.2,6.65265653]
[1739564286565,0.72733,2748.6,2748.5,0.72734]
[1739564287062,1.31012,2748.7,2748.6,0.72733]
[1739564287261,0.5828,2748.7,2748.6,0.72733]
[1739564288461,40.8,2748.8,2748.7,0.7273]
[1739564288664,0.5834,2749.4,2749.3,0.72714]
[1739564288665,0.5822,2749.4,2749.3,0.72714]
[1739564288852,3.2078,2749.7,2749.4,0.72712]
[1739564288853,0.72711,2749.5,2749.4,0.72712]
[1739564289051,41.52711,2749.5,2749.4,0.72712]
[1739564290363,41.52709,2749.5,2749.4,0.72712]
[1739564290956,0.72709,2749.5,2749.4,0.72712]
[1739564291161,9.0698,2751.3,2749.4,13.70934603]
[1739564291360,0.72681,2750.6,2750.4,3.2078]
[1739564291557,40.8,2750.5,2750.4,3.93465]
[1739564291957,40.8,2750.5,2750.4,3.2078]
[1739564292162,40.8,2750.5,2750.2,1.1308]
[1739564292456,41.52684,2750.5,2750.2,1.86315653]
[1739564292653,40.8,2750.5,2750.2,1.13625653]
[1739564292857,40.8,2750.5,2750.3,0.72688]
[1739564293862,40.8,2750.5,2750.2,1.13625653]
[1739564294264,40.8,2750.5,2750.4,0.72685]
[1739564294764,41.52684,2750.5,2750.2,1.86315653]
[1739564294960,41.52684,2750.5,2750.2,1.86316653]
[1739564295161,0.72687,2750.4,2750.2,0.00545653]
[1739564295861,41.52684,2750.5,2750.2,0.73236653]
[1739564296060,41.52684,2750.5,2750.3,0.72688]
[1739564296259,40.8,2750.5,2750.2,0.00545653]